[Event "9th Bangabandhu Blitz Men 2021"]
[Site "Dhaka"]
[Date "2021.04.03"]
[Round "9.4"]
[White "Islam, Khandaker Aminul"]
[Black "Zia, Tahsin Tajwar"]
[Result "0-1"]
[ECO "D00"]
[WhiteElo "2210"]
[BlackElo "2170"]
[Annotator "ChessBase"]
[PlyCount "89"]
[EventDate "2021.04.02"]
[EventType "swiss"]
[EventCountry "BAN"]
[SourceTitle "playchess.com"]
[Source "ChessBase"]
[SourceQuality "1"]
[TimeControl "180+2"]

1. d4 {[%emt 0:00:00]} d5 {[%emt 0:00:04]} 2. Bf4 {[%emt 0:00:01]} Nf6 {[%emt 0:00:43]} 3. e3 {[%emt 0:00:02]} c6 {[%emt 0:00:09]} 4. Nd2 {[%emt 0:00:08]} Bg4 {[%emt 0:00:06]} 5. f3 {[%emt 0:00:03]} Bf5 {[%emt 0:00:01]} 6. g4 {[%emt 0:02:58]} Bg6 7. h4 {[%emt 0:00:00]} h5 {[%emt 0:00:02]} 8. g5 {[%emt 0:00:00]} Nfd7 {[%emt 0:00:01]} 9. Bg3 {[%emt 0:00:00]} e6 {[%emt 0:00:11]} 10. Ne2 {[%emt 0:00:00]} Qb6 {[%emt 0:00:06]} 11. Rb1 {[%emt 0:00:00]} c5 {[%emt 0:00:01]} 12. Bh3 {[%emt 0:00:00]} Nc6 {[%emt 0:00:03]} 13. Nf4 {[%emt 0:00:00]} Ne7 {[%emt 0:00:30]} 14. Nxg6 {[%emt 0:00:00]} Nxg6 {[%emt 0:00:01]} 15. c3 {[%emt 0:00:00]} Bd6 {[%emt 0:00:06]} 16. Bxd6 Qxd6 {[%emt 0:00:00]} 17. f4 {[%emt 0:00:00]} Rc8 {[%emt 0:00:15]} 18. Bf1 {[%emt 0:00:00]} Ne7 {[%emt 0:00:12]} 19. Be2 {[%emt 0:00:00]} g6 {[%emt 0:00:01]} 20. Bd3 {[%emt 0:00:00]} a6 {[%emt 0:00:06]} 21. Nf3 {[%emt 0:00:00]} cxd4 {[%emt 0:00:21]} 22. cxd4 {[%emt 0:00:00]} Qb4+ {[%emt 0:00:01]} 23. Qd2 {[%emt 0:00:00]} Qa4 {[%emt 0:00:08]} 24. b3 {[%emt 0:00:00]} Qa3 {[%emt 0:00:01]} 25. Ke2 {[%emt 0:00:00]} O-O {[%emt 0:00:15]} 26. Rhc1 {[%emt 0:00:00]} b5 {[%emt 0:00:07]} 27. Ne5 {[%emt 0:00:18]} Nxe5 {[%emt 0:00:04]} 28. dxe5 {[%emt 0:00:08]} Kg7 {[%emt 0:00:04]} 29. Rc2 {[%emt 0:00:03]} Rxc2 {[%emt 0:00:02]} 30. Qxc2 {[%emt 0:00:02]} Rc8 {[%emt 0:00:00]} 31. Qd2 {[%emt 0:00:02]} Qc5 {[%emt 0:00:06]} 32. Rb2 {[%emt 0:00:01]} d4 {[%emt 0:00:06]} 33. Rc2 {[%emt 0:00:01]} Qd5 {[%emt 0:00:04]} 34. e4 {[%emt 0:00:02]} Qb7 {[%emt 0:00:01]} 35. Qb4 {[%emt 0:00:06]} Rxc2+ {[%emt 0:00:02]} 36. Bxc2 {[%emt 0:00:01]} Nc6 {[%emt 0:00:04]} 37. Qd6 {[%emt 0:00:04]} d3+ {[%emt 0:00:06]} 38. Bxd3 {[%emt 0:00:03]} Qb6 {[%emt 0:00:01]} 39. f5 {[%emt 0:00:10]} gxf5 {[%emt 0:00:02]} 40. exf5 {[%emt 0:00:00]} Nd4+ {[%emt 0:00:01]} 41. Kd1 {[%emt 0:00:02]} Qxd6 {[%emt 0:00:05]} 42. exd6 {[%emt 0:00:02]} Kf8 {[%emt 0:00:01]} 43. f6 {[%emt 0:00:05]} Ke8 {[%emt 0:00:03]} 44. d7+ Kxd7 45. Bg6 0-1

[Event "9th Bangabandhu Blitz Men 2021"]
[Site "Dhaka"]
[Date "2021.04.03"]
[Round "9.5"]
[White "Mollah Abdullah, Al Rakib"]
[Black "Reefat, Bin-Sattar"]
[Result "1-0"]
[ECO "A43"]
[WhiteElo "2464"]
[BlackElo "2401"]
[Annotator "ChessBase"]
[PlyCount "75"]
[EventDate "2021.04.02"]
[EventType "swiss"]
[EventCountry "BAN"]
[SourceTitle "playchess.com"]
[Source "ChessBase"]
[SourceQuality "1"]
[TimeControl "180+2"]

1. d4 {[%emt 0:00:00]} e6 {[%emt 0:00:01]} 2. g3 {[%emt 0:00:00]} c5 {[%emt 0:00:01]} 3. Nf3 {[%emt 0:00:02]} b5 {[%emt 0:03:04]} 4. Bg2 Bb7 5. O-O {[%emt 0:03:08]} a6 {[%emt 0:00:04]} 6. a4 {[%emt 0:00:00]} Qb6 {[%emt 0:00:00]} 7. Be3 {[%emt 0:00:00]} Nf6 {[%emt 0:00:00]} 8. dxc5 {[%emt 0:00:00]} Bxc5 {[%emt 0:00:00]} 9. Bxc5 {[%emt 0:00:00]} Qxc5 {[%emt 0:00:08]} 10. axb5 {[%emt 0:00:00]} axb5 {[%emt 0:00:00]} 11. Rxa8 Bxa8 {[%emt 0:00:00]} 12. Qd4 {[%emt 0:00:00]} Qxd4 {[%emt 0:00:00]} 13. Nxd4 {[%emt 0:00:00]} Bxg2 {[%emt 0:00:00]} 14. Kxg2 {[%emt 0:00:00]} b4 {[%emt 0:00:00]} 15. Nd2 {[%emt 0:00:00]} Ke7 {[%emt 0:00:00]} 16. Ra1 {[%emt 0:00:00]} Rc8 {[%emt 0:00:00]} 17. Ra8 {[%emt 0:00:00]} Nd5 {[%emt 0:00:00]} 18. e4 {[%emt 0:00:00]} Nb6 {[%emt 0:00:00]} 19. Ra7 {[%emt 0:00:00]} Nc6 {[%emt 0:00:00]} 20. Nxc6+ {[%emt 0:00:00]} Rxc6 {[%emt 0:00:00]} 21. Rb7 {[%emt 0:00:00]} Kd8 {[%emt 0:00:24]} 22. Nb3 {[%emt 0:00:34]} e5 {[%emt 0:00:02]} 23. Na5 {[%emt 0:00:00]} Rf6 {[%emt 0:00:00]} 24. Rb8+ {[%emt 0:00:04]} Kc7 {[%emt 0:00:00]} 25. Re8 {[%emt 0:00:00]} Re6 {[%emt 0:00:00]} 26. Rg8 {[%emt 0:00:00]} Rg6 {[%emt 0:00:00]} 27. Rf8 {[%emt 0:00:00]} Rf6 {[%emt 0:00:10]} 28. b3 {[%emt 0:00:00]} g6 {[%emt 0:00:00]} 29. g4 {[%emt 0:00:10]} Rf4 {[%emt 0:00:00]} 30. f3 {[%emt 0:00:02]} d5 {[%emt 0:00:00]} 31. exd5 {[%emt 0:00:00]} Nxd5 {[%emt 0:00:00]} 32. Nc4 {[%emt 0:00:00]} e4 {[%emt 0:00:00]} 33. fxe4 {[%emt 0:00:00]} Nc3 {[%emt 0:00:00]} 34. e5 {[%emt 0:00:00]} Kd7 {[%emt 0:00:02]} 35. h3 {[%emt 0:00:00]} Ne2 {[%emt 0:00:02]} 36. Rb8 {[%emt 0:00:00]} Nd4 {[%emt 0:00:07]} 37. Rxb4 {[%emt 0:00:00]} Nxc2 {[%emt 0:00:01]} 38. Nb6+ {[%emt 0:00:00]} 1-0

[Event "9th Bangabandhu Blitz Men 2021"]
[Site "Dhaka"]
[Date "2021.04.03"]
[Round "9.6"]
[White "Rahman, Taibur"]
[Black "Masum, Hossain"]
[Result "0-1"]
[ECO "D28"]
[WhiteElo "2189"]
[BlackElo "2061"]
[Annotator "NA"]
[PlyCount "103"]
[EventDate "2021.04.02"]
[EventType "swiss"]
[EventCountry "BAN"]
[SourceTitle "playchess.com"]
[Source "ChessBase"]
[SourceQuality "1"]
[TimeControl "180+2"]

1. d4 {[%emt 0:00:00]} d5 {[%emt 0:00:00]} 2. Nf3 {[%emt 0:00:00]} Nf6 {[%emt 0:00:01]} 3. c4 {[%emt 0:00:01]} dxc4 {[%emt 0:03:05]} 4. e3 {[%emt 0:00:00]} e6 {[%emt 0:00:00]} 5. Bxc4 {[%emt 0:00:02]} a6 {[%emt 0:00:00]} 6. O-O {[%emt 0:00:06]} b5 {[%emt 0:00:00]} 7. Bd3 {[%emt 0:00:07]} Bb7 {[%emt 0:00:00]} 8. a4 $11 {[%emt 0:00:02]} b4 {[%emt 0:00:00]} 9. Qe2 {[%emt 0:00:04]} c5 {[%emt 0:00:00]} 10. Rd1 {[%emt 0:00:01]} Nbd7 {[%emt 0:00:00]} 11. e4 {[%emt 0:00:09]} cxd4 {[%emt 0:00:00]} 12. e5 {[%emt 0:00:04]} Bxf3 {[%emt 0:00:00]} 13. gxf3 {[%emt 0:00:11]} Nd5 {[%emt 0:00:00]} 14. f4 {[%emt 0:00:15]} a5 {[%emt 0:00:00]} 15. Bc4 {[%emt 0:00:21]} Bc5 {[%emt 0:00:00]} 16. Bxd5 {[%emt 0:00:09]} exd5 {[%emt 0:00:00]} 17. Nd2 {[%emt 0:00:13]} O-O {[%emt 0:00:00]} 18. Nb3 {[%emt 0:00:00]} Qb6 {[%emt 0:00:00]} 19. Qd3 {[%emt 0:00:13]} Rfd8 {[%emt 0:00:00]} 20. Nxd4 {[%emt 0:00:15]} Bxd4 {[%emt 0:00:00]} 21. Qxd4 {[%emt 0:00:01]} Qxd4 {[%emt 0:00:00]} 22. Rxd4 {[%emt 0:00:02]} Nc5 {[%emt 0:00:00]} 23. Rd1 {[%emt 0:00:21]} d4 {[%emt 0:00:00]} 24. Kg2 {[%emt 0:00:07]} Rd5 {[%emt 0:00:00]} 25. Bd2 {[%emt 0:00:13]} Nb3 {[%emt 0:00:05]} 26. Rab1 {[%emt 0:00:01]} Rc8 {[%emt 0:00:03]} 27. Be1 {[%emt 0:00:05]} d3 {[%emt 0:00:07]} 28. Bd2 {[%emt 0:00:03]} Rc2 {[%emt 0:00:02]} 29. Be3 {[%emt 0:00:02]} Kf8 {[%emt 0:00:10]} 30. Kf3 {[%emt 0:00:02]} Ke7 {[%emt 0:00:07]} 31. Ke4 {[%emt 0:00:07]} Rd7 {[%emt 0:00:14]} 32. Rxd3 {[%emt 0:00:02]} Rxd3 33. Kxd3 {[%emt 0:00:01]} Rc6 {[%emt 0:00:07]} 34. Rd1 {[%emt 0:00:06]} Ke6 {[%emt 0:00:02]} 35. Ke4 {[%emt 0:00:04]} Rc4+ {[%emt 0:00:01]} 36. Kf3 {[%emt 0:00:05]} Rc2 {[%emt 0:00:02]} 37. Rd6+ {[%emt 0:00:03]} Ke7 {[%emt 0:00:02]} 38. Rb6 {[%emt 0:00:03]} Rxb2 {[%emt 0:00:03]} 39. f5 {[%emt 0:00:02]} Ra2 {[%emt 0:00:02]} 40. Rb7+ {[%emt 0:00:01]} Ke8 {[%emt 0:00:01]} 41. e6 {[%emt 0:00:02]} fxe6 {[%emt 0:00:02]} 42. fxe6 {[%emt 0:00:01]} h6 {[%emt 0:00:03]} 43. Bf4 {[%emt 0:00:03]} Nc5 {[%emt 0:00:03]} 44. Rb6 {[%emt 0:00:02]} Rxa4 {[%emt 0:00:02]} 45. Bd6 {[%emt 0:00:01]} Nxe6 {[%emt 0:00:03]} 46. Rb7 {[%emt 0:00:03]} Ra2 {[%emt 0:00:02]} 47. Ke4 {[%emt 0:00:02]} Re2+ {[%emt 0:00:01]} 48. Kd5 {[%emt 0:00:02]} Nd8 {[%emt 0:00:02]} 49. f4 {[%emt 0:00:03]} Nxb7 {[%emt 0:00:01]} 50. Be5 {[%emt 0:00:01]} b3 {[%emt 0:00:02]} 51. Bxg7 {[%emt 0:00:03]} b2 {[%emt 0:00:00]} 52. Kd4 {[%emt 0:00:37]} 0-1

[Event "9th Bangabandhu Blitz Men 2021"]
[Site "Dhaka"]
[Date "2021.04.03"]
[Round "9.7"]
[White "Mohammed Abdul, Malek"]
[Black "Manon, Reja Neer"]
[Result "0-1"]
[ECO "B08"]
[WhiteElo "2125"]
[BlackElo "2112"]
[Annotator "ChessBase"]
[PlyCount "42"]
[EventDate "2021.04.02"]
[EventType "swiss"]
[EventCountry "BAN"]
[SourceTitle "playchess.com"]
[Source "ChessBase"]
[SourceQuality "1"]
[TimeControl "180+2"]

1. d4 {[%emt 0:00:00]} Nf6 {[%emt 0:00:00]} 2. Nf3 {[%emt 0:00:02]} d6 {[%emt 0:00:03]} 3. Nc3 {[%emt 0:00:07]} g6 {[%emt 0:00:02]} 4. e4 {[%emt 0:00:01]} Bg7 {[%emt 0:03:03]} 5. Bc4 {[%emt 0:00:10]} O-O {[%emt 0:00:00]} 6. Bb3 {[%emt 0:00:00]} Nbd7 {[%emt 0:00:00]} 7. e5 {[%emt 0:00:09]} dxe5 {[%emt 0:00:00]} 8. dxe5 {[%emt 0:00:02]} Ng4 {[%emt 0:00:00]} 9. e6 {[%emt 0:00:01]} Nde5 {[%emt 0:00:00]} 10. Qe2 {[%emt 0:00:59]} fxe6 {[%emt 0:00:00]} 11. Nxe5 {[%emt 0:00:29]} Nxe5 {[%emt 0:00:00]} 12. O-O {[%emt 0:00:27]} Nc6 {[%emt 0:00:00]} 13. Bxe6+ {[%emt 0:00:15]} Bxe6 {[%emt 0:00:00]} 14. Qxe6+ {[%emt 0:00:02]} Kh8 {[%emt 0:00:00]} 15. Bg5 {[%emt 0:00:20]} Nd4 {[%emt 0:00:00]} 16. Qe4 {[%emt 0:00:02]} Qd7 {[%emt 0:00:00]} 17. Rad1 {[%emt 0:00:02]} e5 {[%emt 0:00:00]} 18. Nd5 {[%emt 0:00:10]} c6 {[%emt 0:00:00]} 19. Ne3 {[%emt 0:00:04]} Qf7 {[%emt 0:00:00]} 20. Ng4 {[%emt 0:00:18]} Qf5 {[%emt 0:00:01]} 21. Qxf5 {[%emt 0:00:02]} gxf5 {[%emt 0:00:33]} 0-1

[Event "9th Bangabandhu Blitz Men 2021"]
[Site "Dhaka"]
[Date "2021.04.03"]
[Round "9.8"]
[White "Abdul, Momin"]
[Black "Mehdi Hasan Parag"]
[Result "0-1"]
[ECO "C78"]
[WhiteElo "1944"]
[BlackElo "2192"]
[Annotator "ChessBase"]
[PlyCount "56"]
[EventDate "2021.04.02"]
[EventType "swiss"]
[EventCountry "BAN"]
[SourceTitle "playchess.com"]
[Source "ChessBase"]
[SourceQuality "1"]
[TimeControl "180+2"]

1. e4 {[%emt 0:00:00]} e5 {[%emt 0:00:05]} 2. Nf3 {[%emt 0:00:01]} Nc6 {[%emt 0:00:01]} 3. Bb5 {[%emt 0:00:01]} a6 {[%emt 0:00:01]} 4. Ba4 {[%emt 0:00:00]} Nf6 {[%emt 0:00:04]} 5. O-O {[%emt 0:00:02]} b5 {[%emt 0:00:02]} 6. Bb3 {[%emt 0:00:00]} Bc5 {[%emt 0:00:03]} 7. d3 {[%emt 0:00:08]} d6 {[%emt 0:00:03]} 8. h3 {[%emt 0:00:02]} h6 {[%emt 0:00:06]} 9. c3 {[%emt 0:00:01]} O-O {[%emt 0:00:04]} 10. Re1 {[%emt 0:00:01]} Bb6 {[%emt 0:00:06]} 11. Nbd2 {[%emt 0:00:01]} Re8 {[%emt 0:00:05]} 12. Nf1 {[%emt 0:00:02]} Be6 {[%emt 0:00:02]} 13. Bc2 {[%emt 0:00:31]} d5 {[%emt 0:00:05]} 14. exd5 {[%emt 0:00:06]} Bxd5 {[%emt 0:00:02]} 15. Ng3 {[%emt 0:00:05]} Qd7 {[%emt 0:00:05]} 16. Be3 {[%emt 0:00:10]} Bxe3 {[%emt 0:00:02]} 17. Rxe3 {[%emt 0:00:01]} Rad8 {[%emt 0:00:08]} 18. Qe1 {[%emt 0:00:12]} Re6 {[%emt 0:00:11]} 19. b3 {[%emt 0:00:06]} Bxf3 {[%emt 0:00:07]} 20. Rxf3 {[%emt 0:00:03]} b4 {[%emt 0:00:04]} 21. Nf5 {[%emt 0:00:35]} Nd5 {[%emt 0:00:11]} 22. c4 {[%emt 0:00:25]} Nf4 {[%emt 0:00:10]} 23. Qe4 {[%emt 0:00:10]} Nd4 {[%emt 0:00:10]} 24. Nxd4 {[%emt 0:00:04]} Qxd4 {[%emt 0:00:01]} 25. Qxd4 {[%emt 0:00:02]} Rxd4 {[%emt 0:00:04]} 26. Re1 {[%emt 0:00:21]} c5 {[%emt 0:00:04]} 27. Re4 {[%emt 0:00:19]} Rxe4 {[%emt 0:00:02]} 28. dxe4 {[%emt 0:00:02]} Rd6 {[%emt 0:00:01]} 0-1